Cogmind - Beta 15 @@@ ROGUE MODE // 2025.05.11 @ 14:09:18 Player: P9H Result: Destroyed by Autobeam Turret with Autobeam Performance ------------- Evolutions (0) 0 Regions Visited (2) 400 Robots Destroyed (8) 40 Value Destroyed (192) 192 Prototype IDs (0) 0 Alien Tech Used (0) 0 Bonus (0) 0 TOTAL SCORE: 632 Bonus ------- None Cogmind --------- Core Integrity 0/250 Matter 246/300 Energy 265/265 System Corruption 0% Temperature Cool (6) Movement Core (600) Ox11 Location -10/Subcaves Parts ------- > --- POWER (1) -------- Reinforced Ion Engine > --- PROPULSION (2) --- (None) > --- UTILITY (2) ------ Medium Storage Unit Makeshift System Restoration Module > --- WEAPON (2) ------- Subdweller Beam Cannon Battle Cannon > --- INVENTORY (10) --- Ion Engine Light Ion Engine Light Ion Engine Reinforced Ion Engine Reinforced Ion Engine Aluminum Leg Disposable Heat Sink Light Assault Rifle Grenade Launcher Peak State ------------ > --- POWER ------------ Reinforced Ion Engine > --- PROPULSION ------- Wheel > --- UTILITY ---------- Medium Storage Unit Makeshift System Restoration Module > --- WEAPON ----------- Subdweller Beam Cannon Battle Cannon > --- INVENTORY -------- Ion Engine Light Ion Engine Light Ion Engine Reinforced Ion Engine Reinforced Ion Engine Aluminum Leg Light Assault Rifle Grenade Launcher [Rating: 13] Favorites ----------- Power Reinforced Ion Engine Engine Reinforced Ion Engine Propulsion Wheel Leg Aluminum Leg Wheel Wheel Utility Medium Storage Unit Device Makeshift System Restoration Module Storage Medium Storage Unit Weapon Assault Rifle Energy Gun EM Pulse Gun Energy Cannon Subdweller Beam Cannon Ballistic Gun Assault Rifle Ballistic Cannon Battle Cannon Launcher Grenade Launcher Build | -11 -10 -10 ------- Run | Yrd Mat Sub Slots Evolved . | . . . Power . | . . . Propulsion . | . . . Utility . | . . . Weapon . | . . . Parts Attached 16 | 7 2 7 Power 3 | 1 1 1 Engine 3 | 1 1 1 Core . | . . . Reactor . | . . . Propulsion 3 | 3 . . Treads . | . . . Leg 1 | 1 . . Wheel 2 | 2 . . Hover . | . . . Flight . | . . . Utility 3 | 1 1 1 Device 1 | . . 1 Storage 2 | 1 1 . Processor . | . . . Hackware . | . . . Protection . | . . . Artifact . | . . . Weapon 7 | 2 . 5 Energy Gun 1 | 1 . . Energy Cannon 1 | . . 1 Ballistic Gun 3 | 1 . 2 Ballistic Cannon 1 | . . 1 Launcher 1 | . . 1 Special Weapon . | . . . Impact Weapon . | . . . Slashing Weapon . | . . . Piercing Weapon . | . . . Special Melee Weapon . | . . . Unidentified Prototypes . | . . . Parts Lost 5 | . . 5 Power . | . . . Propulsion 2 | . . 2 Utility . | . . . Weapon 3 | . . 3 Highest Loss Streak 2 | . . 2 To Critical Strikes . | . . . Average Backups 7 | 2 6 9 Power 3 | . 2 5 Propulsion 1 | 1 2 1 Utility . | . . . Weapon 1 | . 2 2 Tool/Special . | . . . Unused Backups 7 | . . 7 Power 4 | . . 4 Propulsion 2 | . . 2 Utility 1 | . . 1 Weapon . | . . . Tool/Special . | . . . Average Slot Usage (%) 88 | . 85 90 Engine 14 | . 14 14 Wheel 24 | . 28 22 Device 7 | . . 10 Storage 14 | . 14 14 Energy Gun 6 | . 14 2 Energy Cannon 2 | . . 4 Ballistic Gun 15 | . 14 16 Ballistic Cannon 2 | . . 4 Peak Build Rating 13 | 6 8 13 Average Rating 8 | 2 6 11 On Entrance 4 | . 6 8 Naked Turns . | . . . Heaviest Build 36 | 12 24 36 Greatest Support 20 | 20 20 20 Greatest Overweight (x) 11 | 1 1 11 Average Overweight (x) . | . . 1 Largest Inventory Capacity 10 | 8 10 10 Average Capacity 9 | 5 9 10 Most Carried 10 | 5 10 10 Average Carried 7 | 3 6 9 Final Capacity 10 | 8 10 10 Final Carried 10 | 4 10 9 Class Distribution -------------------- 100% | Mutant Dominant Class ---------------- Mutant | -10/Materials Mutant | -10/Subcaves Resources | -11 -10 -10 ----------- Run | Yrd Mat Sub Matter Collected 426 | 245 68 113 Remotely . | . . . Salvage Created 231 | . 150 81 Parts 12 | . 8 4 Haulers Intercepted . | . . . Recyclers Shooed . | . . . Parts Field Recycled . | . . . Retrieved Matter . | . . . Parts Self-Destructed 3 | . . 3 Prevented . | . . . Kills | -11 -10 -10 ------- Run | Yrd Mat Sub Combat Hostiles Destroyed 7 | . 5 2 Guns 5 | . 4 1 Cannons 1 | . . 1 AOE 1 | . 1 . Classes Destroyed 4 | . 3 1 Worker 1 | . 1 . Swarmer 3 | . 3 . Grunt 2 | . 2 . Subdweller 2 | . . 2 Best Kill Streak 4 | . 4 1 Combat Bots Only 3 | . 3 1 Max Kills in Single Turn 2 | . 2 1 Gunslinging . | . . . Exploded 1 | . 1 . Melee . | . . . Uniques/NPCs Destroyed . | . . . Combat | -11 -10 -10 -------- Run | Yrd Mat Sub Hostile Shots Fired 122 | . 34 88 Missed 41 | . 9 32 Hits 81 | . 25 56 Projectile 81 | . 25 56 Critical Strikes 3 | . 1 2 Damage Taken 1030 | . 269 761 Core 252 | . 89 163 Absorbed by Shields . | . . . Core Remaining (%) 100 | 100 . . Volleys Fired 40 | . 16 24 Largest 2 | . 2 2 Hottest 113 | . 60 113 Shots Fired 79 | . 32 47 Gun 69 | . 32 37 Cannon 10 | . . 10 Launcher . | . . . Special . | . . . Kinetic 55 | . 16 39 Thermal 5 | . . 5 Explosive . | . . . Electromagnetic 19 | . 16 3 Robot Hit Streak 16 | . 7 16 Robot Miss Streak 4 | . 4 4 Penetration Max . | . . . Secondary Targets 3 | . 3 . Max Gunslinging Chain 1 | . 1 . Shots Hit Robots 53 | . 17 36 Core Hits 14 | . 9 5 Critical Kills . | . . . Critical Parts Destroyed . | . . . Critical Strikes 2 | . 1 1 Corrupt 2 | . 1 1 Melee Attacks . | . . . Impact . | . . . Slashing . | . . . Piercing . | . . . Sneak Attacks . | . . . Combat Hostiles . | . . . Follow-up Attacks . | . . . Damage Inflicted 675 | . 236 439 Guns 543 | . 206 337 Cannons 102 | . . 102 Explosions 30 | . 30 . Melee . | . . . Ramming . | . . . Kinetic 468 | . 107 361 Thermal 88 | . 30 58 Explosive . | . . . Electromagnetic 119 | . 99 20 Impact . | . . . Slashing . | . . . Piercing . | . . . Highest Corruption . | . . . Average Corruption . | . . . Corruption Purged . | . . . Corruption Blocked . | . . . Overload Shots . | . . . Overflow Damage 3 | . . 3 Projectiles 3 | . . 3 Explosions . | . . . Melee . | . . . Knockbacks 2 | . . 2 Impact . | . . . Kinetic 2 | . . 2 Secondary . | . . . Self-Inflicted Damage . | . . . Shots . | . . . Rammed . | . . . Targets Rammed . | . . . Kicked . | . . . Crushed . | . . . Highest Temperature 324 | . 93 324 Average Temperature 81 | . 55 115 Received Heat Transfer 543 | . 93 450 Siege Activations . | . . . Martial Activations . | . . . Shielding Activations . | . . . Robots Disrupted . | . . . Combat Hostiles . | . . . Robots Corrupted . | . . . Combat Hostiles . | . . . Parts Fried . | . . . Impact Corruptions . | . . . Robots Melted . | . . . Combat Hostiles . | . . . Parts Melted . | . . . Heat Transferred 74 | . . 74 Parts Sabotaged . | . . . Parts Stolen . | . . . Parts Stripped . | . . . Power Chain Reactions 1 | . 1 . Alert | -11 -10 -10 ------- Run | Yrd Mat Sub Maximum Alert Level . | . . . Low Security (%) 100 | 100 100 . Level 1 . | . . . Level 2 . | . . . Level 3 . | . . . Level 4 . | . . . Level 5 . | . . . High Security . | . . . Max Security . | . . . Peak Influence 86 | . 86 . Initial . | . . . Average 26 | . 38 . Influence Increases 141 | . 126 15 Destroy 0b10 Robot/C 100 | . 100 . Destroy 0b10 Robot/NC 5 | . 5 . Destroy Leader 20 | . 20 . Destroy Structure 1 | . 1 . Lose Combat Pursuer 15 | . . 15 Influence Decreases 136 | . 90 46 Entered New Map 18 | . . 18 Time Decay 108 | . 90 18 Lost Part 10 | . . 10 Squads Dispatched . | . . . Investigation . | . . . Extermination . | . . . Reinforcement . | . . . Assault . | . . . Garrison . | . . . Intercept . | . . . Searches Triggered . | . . . Construction Impeded . | . . . Haulers Reinforced . | . . . Active Scanning Responses . | . . . Cargo Convoy Interrupts . | . . . Stealth | -11 -10 -10 --------- Run | Yrd Mat Sub Distress Signals . | . . . Communications Jammed . | . . . Distress Signals . | . . . Times Spotted 13 | . 5 8 Peak Tracking Total 6 | . 3 6 Tactical Retreats 1 | . . 1 Traps | -11 -10 -10 ------- Run | Yrd Mat Sub Traps Triggered . | . . . Indirectly . | . . . Trap Hack Attempts . | . . . Triggered . | . . . Disarmed . | . . . Reprogrammed . | . . . Reused . | . . . Traps Extracted . | . . . Installed . | . . . Triggered . | . . . Machines | -11 -10 -10 ---------- Run | Yrd Mat Sub Machines Disabled . | . . . Max in Single Turn . | . . . Machines Repaired . | . . . Machines Dismantled . | . . . Machines Sabotaged . | . . . Overloaded Fab Kills . | . . . Hacking | -11 -10 -10 --------- Run | Yrd Mat Sub Machines Accessed . | . . . Terminals . | . . . Fabricators . | . . . Repair Stations . | . . . Recycling Units . | . . . Scanalyzers . | . . . Garrison Access . | . . . Total Hacks . | . . . Successful . | . . . Failed . | . . . Catastrophic . | . . . Database Lockouts . | . . . Manual . | . . . Terminals . | . . . Fabricators . | . . . Repair Stations . | . . . Recycling Units . | . . . Scanalyzers . | . . . Garrison Access . | . . . Terminal Hacks . | . . . Fabricator Hacks . | . . . Repair Station Hacks . | . . . Recycling Unit Hacks . | . . . Scanalyzer . | . . . Garrison Access Hacks . | . . . Unauthorized Hacks . | . . . Terminals . | . . . Fabricators . | . . . Repair Stations . | . . . Recycling Units . | . . . Scanalyzers . | . . . Garrison Access . | . . . Data Cores Recovered . | . . . Used . | . . . Hacking Detections . | . . . Full Trace Events . | . . . Feedback Events . | . . . Feedback Blocked . | . . . Robot Schematics Acquired . | . . . Robots Built . | . . . Authchips . | . . . Time . | . . . Total Robot Build Rating . | . . . Part Schematics Acquired . | . . . Parts Built . | . . . Authchips . | . . . Time . | . . . Total Part Build Rating . | . . . Parts Repaired . | . . . Time . | . . . Parts Recycled . | . . . Recycled Matter . | . . . Retrieved Matter . | . . . Retrieved Components . | . . . Parts Scanalyzed . | . . . Part Schematics Acquired . | . . . Parts Damaged . | . . . Bothacking | -11 -10 -10 ------------ Run | Yrd Mat Sub Used RIF Installer . | . . . Robots Hacked . | . . . Non-combat . | . . . Combat . | . . . Robot Hacks Applied . | . . . Relay Couplers Released . | . . . Fabnet Peak Effective % . | . . . Robots Rewired . | . . . Allies Hacked . | . . . Hacks Repelled . | . . . Allies | -11 -10 -10 -------- Run | Yrd Mat Sub Total Allies . | . . . Largest Group . | . . . Highest-Rated Group . | . . . Highest-Rated Ally . | . . . Total Orders . | . . . Ally Attacks . | . . . Total Damage . | . . . Kills . | . . . Allies Corrupted . | . . . Allies Melted . | . . . Intel | -11 -10 -10 ------- Run | Yrd Mat Sub Active Infowar (turns) . | . . . Robot Analysis Total . | . . . Derelict Logs Recovered 1 | . . 1 Drone Launches . | . . . Drone Recoveries . | . . . Exploration | -11 -10 -10 ------------- Run | Yrd Mat Sub Turns Passed 745 | 92 216 437 Spaces Moved 614 | 82 193 339 Core 35 | 34 . 1 Treads . | . . . Legs 12 | 12 . . Wheels 567 | 36 193 338 Hover . | . . . Flight . | . . . Fastest Speed 50 | 50 80 80 Average Speed 93 | 75 81 104 Slowest Speed 600 | 120 95 600 Overloaded Moves . | . . . Propulsion Burnouts . | . . . Robots Hopped . | . . . Potential Cave-ins . | . . . Cave-ins Triggered . | . . . Exploration Rate (%) 22 | 4 35 27 Regions Visited 2 Branch Regions 1 Pre-discovered Areas . | . . . Known Exits Taken . | . . . Unknown Exits Taken 2 | 1 1 . Scrap Searched 2 | . . 2 Spaces Dug . | . . . Terrain Destroyed 2 | . . 2 Melee . | . . . Projectile 2 | . . 2 AOE . | . . . Terrain Rammed . | . . . Walls Destroyed . | . . . Machines Disabled . | . . . Actions | -11 -10 -10 --------- Run | Yrd Mat Sub Total 707 | 108 219 380 Wait 17 | 15 . 2 Move 612 | 81 192 339 Hop . | . . . Pick Up 17 | 5 7 5 Fast Attach 6 | 5 . 1 Attach 4 | 1 . 3 Detach . | . . . Swap 6 | 1 2 3 Drop 5 | . 2 3 Fire 40 | . 16 24 Melee . | . . . Ram . | . . . Kick . | . . . Crush . | . . . Escape Stasis . | . . . Rewire . | . . . Trap . | . . . Miscellaneous . | . . . Route ------- -11/Scrapyard -10/Materials -10/Subcaves History --------- Turn | Location | Event 10 | -11/Scrapyard | Discovered new exit (range 15) 93 | -11/Scrapyard | Entered Materials 301 | -10/Materials | Discovered new exit (range 6) 306 | -10/Materials | Build established: Mutant 309 | -10/Materials | Entered Subcaves 311 | -10/Subcaves | Learned 4 Materials zone layouts 405 | -10/Subcaves | Core integrity fell below 50% 609 | -10/Subcaves | Core integrity fell below 20% 746 | -10/Subcaves | Destroyed by Autobeam Turret with Autobeam Last Messages --------------- 00475_ Acquired Battle Cannon. 00491_ Acquired 4 matter. 00491_ TW-1EY(u) builds Twisted Machinery. 00539_ 26-SBJ(O) puts together Sub. Beam Cannon. 00540_ 26-SBJ(O) collects matter. 00559_ Dropped Aluminum Leg. 00565_ Acquired Sub. Beam Cannon. 00570_ Dropped Sub. Monowheel. 00590_ Wheel destroyed. 00608_ Assault Rifle destroyed. 00616_ EH-ZO2(R) knocked back. 00618_ Critical hit (Meltdown: +300). 00619_ EH-ZO2(R) destroyed. 00626_ Acquired 27 matter. 00628_ Acquired 1 matter. 00636_ Acquired Disposable Heat Sink. 00732_ Wheel destroyed. 00739_ Destroyed Flight Unit. 00739_ S-10 Pest knocked back. 00741_ S-10 Pest destroyed. Map ----- +----------------------------------------------------+ | ?????????????????????????????????????????????????? | | ?????????????????????????????????????????????????? | | ?????????????????????????????????????????????????? | | ???????????????##????????????????????????????????? | | ??????????????# #????????????????????????????????? | | ??????????#### #?????????????????????????????????? | | ?????????## #??????????????????????????????????? | | ?????????# #???????????????????????????????????? | | ????????## #???????????????????????????????????? | | ??????### #???????????????????????????????????? | | ?????## #???????????????????????????????????? | | ????## # #???????????????????????????????????? | | ????# ###???????????????????????????????????? | | ????# ##???????????????????????????????????? | | ???## #???????????????????????????????????? | | ?### #???????????????????????????????????? | | ?# ##??????????????????????????????????? | | ## ## #####??????????????????????????????? | | ## #??????????????????????????????? | | ##??????????????????????????????? | | ########????????????????????????????? | | ## ##???# #####?????#???????? ?????????? | | ?### #???## #??##;##### ?????????? | | ???## ##### #?# s t"?????????? | | #####????# ## ## s [% ????????? | | ??#####??# @ %% t"?????????? | | ??# ##?# #######???????????????? | | ?## #### ## ???????????????????? | | ## ### #?????????????????? | | # #" ### #?????????????????? | | ## # ####?# ### ???????????????? | | #### ## ##????# ##?? ?????????????? | | ##??# ### ###### ##???? ????????????? | | ###???# ### #??? ""???????????? | | #?#### ### ## "????????????? | | ### #?#" ? ""????????????? | | #?????## ?"?????????????? | | ##?????# ###???#??????????????? | | ##?????# ## ####????????????????????? | | ###??## #?#;####???????????????????????? | | # = #### #?###??????????????????????????? | | # #??????????????????????????????? | | # ##= #??????????????????????????????? | | # ## ## ##??????????????????????????????? | | #### ### #???????????????????????????????? | | #??# ##? #???????????????????????????????? | | # #??# ##?? #???????????????????????????????? | | ####?# #??## #???????????????????????????????? | | ##???# #???# ???????????????????????????????? | | ###?# #???### ??????????????????????????????? | +----------------------------------------------------+ Best States ------------- Heat Dissipation 25 Energy Generation 12 Energy Capacity 265 Matter Stores 300 Matter Capacity 300 Sight Range 16 Terrain Scan Density 10 Evasion (%) 50 Item Schematics ----------------- None Robot Schematics ------------------ None Fabricated ------------ Nothing Repaired ---------- Nothing Alien Tech Used ----------------- None Achievements -------------- None Challenges ------------ None Game ------ Seed HugeAluminumCarapace Manual? 0 Play Time 00:07:03 Cumulative 37.0 hours Start 2025.05.11 @ 14:02:26 End 2025.05.11 @ 14:09:18 Sessions 1 Manual Loads 0 Difficulty Rogue Special Mode None Game No. 75 Rogue 75 Adventurer 0 Explorer 0 Win Type - Total 0 Types 0/0/0/0/0/0/0/0/0/0 Lore% 5 Gallery% 27 Achievement% 24 Wizard Run 0 Options --------- Layout 1 ASCII 0 Keyboard 0 Movement Arrows Keybinds 0 Fullscreen 1 Font 16/SmallcapsGlow Map View 50x40 Zoom Use 0% Tactical HUD 1 Map Filters NONE Filters NONE Steam SD RUN: c0cd10c5-cce3-49f0-b0aa-2593f3293534